bitfinex-derivatives/quotes_SOLF0:USTF0_20250113
["timestamp","ask_amount","ask_price","bid_price","bid_amount"]
[1736804856805,2.7551,181.55,181.49,9.0959]
[1736804857396,2.7556,181.51,181.45,2.7565]
[1736804857597,2.7556,181.51,181.45,6.34]
[1736804858204,20.93164868,181.58,181.45,6.34]
[1736804858603,20.93164868,181.55,181.43,94.46]
[1736804858802,2.7559,181.49,181.44,6.34]
[1736804859409,2.7562,181.47,181.43,94.46]
[1736804859710,3.2715,181.51,181.43,94.46]
[1736804859910,2.7561,181.48,181.43,94.46]
[1736804860712,2.756,181.49,181.43,97.2167]
[1736804861607,2.7565,181.46,181.4,2.7572]
[1736804861809,20.93164868,181.49,181.38,6.34]
[1736804862209,4.861,181.51,181.38,6.34]
[1736804862516,4.861,181.51,181.38,27.27164868]
[1736804862917,2.7558,181.5,181.38,27.27164868]
[1736804863214,20.93164868,181.56,181.41,20.93164868]
[1736804863515,20.93164868,181.56,181.48,2.756]
[1736804863809,20.93164868,181.56,181.47,6.34]
[1736804864016,2.7552,181.54,181.49,2.7558]
[1736804864315,20.93164868,181.56,181.47,6.34]
[1736804864719,2.7554,181.53,181.47,9.0962]
[1736804865019,20.93164868,181.56,181.41,20.93164868]
[1736804865220,20.93164868,181.53,181.42,6.34]
[1736804865411,5.0184,181.52,181.42,6.34]
[1736804865813,2.7559,181.49,181.42,9.0969]
[1736804866013,5.0184,181.52,181.42,9.0969]
[1736804866014,5.0184,181.52,181.42,6.34]
[1736804866219,20.93164868,181.5,181.42,6.34]
[1736804867117,2.7566,181.45,181.36,1.6098]
[1736804867421,20.93164868,181.47,181.36,6.34]
[1736804867821,2.7568,181.43,181.38,2.7574]
[1736804868323,2.7571,181.41,181.36,9.0979]
[1736804868915,2.7571,181.41,181.36,2.7579]
[1736804869610,20.93164868,181.44,181.32,94.52]
[1736804869815,5.0656,181.43,181.33,6.34]
[1736804870113,2.7572,181.41,181.35,2.758]
[1736804870516,5.0656,181.43,181.35,2.758]
[1736804870714,2.7571,181.41,181.35,2.758]
[1736804871111,5.0656,181.43,181.32,94.52]
[1736804871315,2.7578,181.37,181.32,94.52]
[1736804872111,20.93164868,181.41,181.32,97.2783]
[1736804872316,2.7576,181.38,181.32,97.2783]
[1736804872518,20.93164868,181.41,181.32,97.2783]
[1736804872823,2.7577,181.38,181.32,97.2783]
[1736804873121,20.93164868,181.41,181.32,97.2783]
[1736804873416,20.93164868,181.41,181.32,94.52]
[1736804873610,2.7579,181.36,181.32,94.52]
[1736804874617,20.93164868,181.41,181.32,97.2785]
[1736804874919,5.0656,181.43,181.32,94.52]
[1736804875421,2.7573,181.4,181.35,2.7579]
[1736804875723,5.0656,181.43,181.32,94.52]
[1736804876221,20.93164868,181.47,181.32,94.52]
[1736804876615,20.93164868,181.47,181.34,20.93164868]
[1736804876616,2.7563,181.47,181.34,20.93164868]
[1736804876815,20.93164868,181.5,181.35,3.2474]
[1736804877012,20.93164868,181.5,181.36,6.34]
[1736804877215,2.7562,181.47,181.42,2.7569]
[1736804877418,20.93164868,181.5,181.42,2.7569]
[1736804878020,2.7563,181.47,181.42,2.7569]
[1736804878927,2.7564,181.46,181.42,2.7569]
[1736804879422,2.7562,181.47,181.43,2.7568]
[1736804879924,20.93164868,181.5,181.37,1.5887]
[1736804880222,2.7561,181.48,181.37,1.5887]
[1736804880520,20.93164868,181.5,181.37,1.5887]
[1736804880723,2.7555,181.52,181.47,2.7561]
[1736804880920,2.7555,181.52,181.46,6.34]
[1736804881120,22.57134868,181.56,181.46,6.34]
[1736804881321,2.7552,181.54,181.46,6.34]
[1736804881825,2.7556,181.51,181.46,9.0963]
[1736804882128,20.93164868,181.53,181.42,6.34]
[1736804882320,20.93164868,181.5,181.42,6.34]
[1736804883019,2.7568,181.43,181.42,6.34]
[1736804883221,20.93164868,181.47,181.42,6.34]
[1736804883523,2.7568,181.44,181.39,2.7573]
[1736804884433,2.7568,181.44,181.4,2.7572]
[1736804884913,20.93164868,181.47,181.4,2.7572]
[1736804885115,2.7565,181.45,181.4,2.7572]
[1736804885317,20.93164868,181.5,181.38,6.34]
[1736804885519,2.7562,181.47,181.38,6.34]
[1736804885719,20.93164868,181.5,181.38,6.34]
[1736804886121,3.3435,181.52,181.38,6.34]
[1736804886318,3.3435,181.52,181.48,2.7559]
[1736804886524,22.57134868,181.56,181.45,6.34]
[1736804886720,1.6397,181.56,181.45,6.34]
[1736804887219,4.3945,181.56,181.45,6.34]
[1736804887419,1.6397,181.56,181.5,2.7557]
[1736804888029,22.57134868,181.56,181.45,6.34]
[1736804888824,20.93164868,181.53,181.44,6.34]
[1736804889229,2.756,181.49,181.44,9.0965]
[1736804889428,20.93164868,181.53,181.44,6.34]
[1736804889924,1.6397,181.56,181.39,1.6178]
[1736804889925,2.7563,181.47,181.39,1.6178]
[1736804890120,20.93164868,181.5,181.4,6.34]
[1736804890325,20.93164868,181.5,181.39,1.6178]
[1736804890326,20.93164868,181.5,181.39,6.34]
[1736804890528,1.6366,181.49,181.41,2.7571]
[1736804891025,20.93164868,181.47,181.39,6.34]
[1736804891426,2.7566,181.45,181.41,2.7571]
[1736804891728,1.6366,181.49,181.39,6.34]
[1736804892533,1.6366,181.49,181.35,20.93164868]
[1736804892730,1.6094,181.48,181.36,6.34]
[1736804893230,1.6366,181.49,181.36,6.34]
[1736804893526,2.7556,181.52,181.38,20.93164868]
[1736804893736,3.1773,181.55,181.41,20.93164868]
[1736804894026,2.7555,181.52,181.47,2.7561]
[1736804894236,3.1773,181.55,181.46,6.34]
[1736804895132,20.93164868,181.53,181.46,6.34]
[1736804895333,2.7561,181.48,181.46,6.34]
[1736804895529,2.7561,181.48,181.43,2.7568]
[1736804895730,20.93164868,181.53,181.43,2.7568]
[1736804895933,2.7562,181.48,181.43,2.7568]
[1736804896127,20.93164868,181.53,181.41,9.097]
[1736804896530,2.7564,181.46,181.41,9.097]
[1736804896731,2.7564,181.46,181.42,2.7569]
[1736804898232,3.1773,181.55,181.41,6.34]
[1736804898537,24.10894868,181.55,181.41,6.34]
[1736804898936,2.7557,181.51,181.46,2.7563]
[1736804899137,24.10894868,181.55,181.42,1.6889]
[1736804899333,2.7555,181.52,181.45,2.7564]
[1736804899528,2.7555,181.52,181.43,3.2349]
[1736804900135,3.1773,181.55,181.43,3.2349]
[1736804900329,2.7556,181.51,181.43,3.2349]
[1736804900530,24.10894868,181.55,181.42,1.6889]
[1736804900735,2.756,181.49,181.44,2.7566]
[1736804901242,2.7561,181.48,181.44,2.7566]
[1736804901839,2.7561,181.48,181.43,2.7568]
[1736804902353,20.93164868,181.52,181.41,9.097]
[1736804902532,1.6888,181.51,181.41,9.097]
[1736804902731,2.7565,181.46,181.41,9.097]
[1736804903040,2.7565,181.46,181.41,2.757]
[1736804903238,2.7565,181.45,181.41,2.757]
[1736804903636,1.6888,181.51,181.39,9.0774]
[1736804903835,20.93164868,181.49,181.39,9.0774]
[1736804904039,20.93164868,181.49,181.39,6.32]
[1736804904639,2.7566,181.45,181.39,6.32]
[1736804905440,2.7566,181.44,181.39,9.0773]
[1736804905636,2.7566,181.44,181.39,6.32]
[1736804906142,1.6888,181.51,181.41,2.757]
[1736804906341,1.6888,181.51,181.39,6.32]
[1736804906538,20.93164868,181.48,181.39,6.32]
[1736804906741,2.7569,181.43,181.39,6.32]
[1736804907347,1.6888,181.51,181.39,6.32]
[1736804907539,1.6888,181.51,181.39,27.25164868]
[1736804907936,2.7561,181.48,181.39,27.25164868]
[1736804908343,1.6888,181.51,181.39,27.25164868]
[1736804908547,2.7562,181.47,181.39,27.25164868]
[1736804908843,1.6888,181.51,181.39,27.25164868]
[1736804909046,1.6888,181.51,181.43,2.7567]
[1736804909446,1.6888,181.51,181.39,27.25164868]
[1736804909645,20.93164868,181.5,181.39,6.32]
[1736804910442,2.7569,181.43,181.39,9.0773]
[1736804911746,1.6888,181.51,181.39,6.32]
[1736804911944,1.6888,181.51,181.39,27.25164868]
[1736804912142,1.6888,181.51,181.39,6.32]
[1736804912345,1.6888,181.51,181.41,2.7571]
[1736804912542,20.93164868,181.5,181.39,6.32]
[1736804912743,2.7569,181.43,181.39,9.0774]
[1736804912944,20.93164868,181.5,181.39,6.32]
[1736804913643,2.7566,181.45,181.41,2.7571]
[1736804913843,20.93164868,181.5,181.39,6.32]
[1736804914250,20.93164868,181.5,181.39,9.0773]
[1736804914947,2.7568,181.43,181.39,9.0773]
[1736804915346,20.93164868,181.5,181.36,4.3543]
[1736804915544,20.93164868,181.44,181.34,94.58]
[1736804916450,3.377,181.43,181.34,94.58]
[1736804916652,4.9666,181.43,181.34,94.58]
[1736804917247,2.7573,181.4,181.35,2.7579]
[1736804917451,4.9666,181.43,181.34,94.58]
[1736804917655,20.93164868,181.47,181.34,94.58]
[1736804917946,20.93164868,181.44,181.34,100.9]
[1736804918356,2.7574,181.4,181.35,2.758]
[1736804918541,20.93164868,181.44,181.35,2.758]
[1736804919652,20.93164868,181.44,181.34,103.658]
[1736804919848,3.3297,181.48,181.34,103.658]
[1736804919849,20.93164868,181.41,181.34,94.58]
[1736804920847,2.758,181.35,181.34,94.58]
[1736804921052,20.93164868,181.38,181.25,24.21264868]
[1736804921250,20.93164868,181.38,181.26,6.32]
[1736804921551,4.8263,181.4,181.26,6.32]
[1736804922349,20.93164868,181.38,181.26,6.32]
[1736804922549,2.7583,181.34,181.29,2.7589]
[1736804922951,20.93164868,181.38,181.29,2.7589]
[1736804923153,20.93164868,181.38,181.28,2.759]
[1736804923952,2.7583,181.33,181.28,2.759]
[1736804924144,20.93164868,181.38,181.26,6.32]
[1736804924343,20.93164868,181.38,181.27,2.7591]
[1736804924544,2.7586,181.32,181.27,2.7591]
[1736804926355,2.7583,181.34,181.29,2.7589]
[1736804926544,20.93164868,181.38,181.26,6.32]
[1736804927549,20.93164868,181.38,181.25,7.897]
[1736804927745,20.93164868,181.38,181.26,2.7592]
[1736804928357,20.93164868,181.38,181.25,7.897]
[1736804928556,2.7586,181.32,181.27,2.7592]
[1736804929956,20.93164868,181.38,181.23,94.6]
[1736804930157,2.7587,181.31,181.26,2.7594]
[1736804930357,2.7587,181.31,181.24,6.32]
[1736804930758,2.7587,181.31,181.26,2.7593]
[1736804930960,2.7587,181.31,181.24,6.32]
[1736804931458,2.7587,181.31,181.26,2.7594]
[1736804931658,4.8263,181.4,181.25,6.32]
[1736804931659,20.93164868,181.35,181.25,6.32]
[1736804932854,20.93164868,181.38,181.25,6.32]
[1736804933358,2.758,181.35,181.3,2.7587]
[1736804934158,20.93164868,181.38,181.25,27.25164868]
[1736804934359,2.7578,181.37,181.25,27.25164868]
[1736804934953,4.8263,181.4,181.28,20.93164868]
[1736804935157,20.93164868,181.44,181.33,2.7582]
[1736804935360,2.7574,181.4,181.34,6.32]
[1736804935760,4.9049,181.46,181.36,2.7577]
[1736804936062,2.757,181.42,181.34,6.32]
[1736804936560,2.7571,181.41,181.37,2.7576]
[1736804936760,4.9049,181.46,181.34,6.32]
[1736804936970,3.2874,181.46,181.34,27.25164868]
[1736804937176,2.7564,181.46,181.34,27.25164868]
[1736804937368,2.7564,181.46,181.37,20.93164868]
[1736804937568,2.7564,181.46,181.41,2.757]
[1736804937982,2.756,181.49,181.41,6.32]
[1736804938165,175.7837074,181.53,181.41,6.32]
[1736804938470,155.95995872,181.53,181.41,6.32]
[1736804938673,154.34225872,181.53,181.41,6.32]
[1736804938869,154.34225872,181.53,181.47,2.7561]
[1736804939077,2.7553,181.53,181.47,2.7561]
[1736804939469,2.7554,181.52,181.46,2.7563]
[1736804940075,2.7554,181.52,181.41,6.32]
[1736804940371,2.7554,181.52,181.47,2.7562]
[1736804940677,2.7554,181.52,181.46,2.7563]
[1736804941179,20.93164868,181.56,181.41,6.32]
[1736804941475,3.2266,181.57,181.43,20.93164868]
[1736804941665,5.9814,181.57,181.47,2.7562]
[1736804941866,3.2266,181.57,181.48,6.32]
[1736804942273,20.93164868,181.56,181.48,6.32]
[1736804942576,151.58695872,181.66,181.49,20.93164868]
[1736804942777,2.7543,181.6,181.54,2.7551]
[1736804942972,20.93164868,181.64,181.49,25.91504868]
[1736804943275,5.0077,181.65,181.49,25.91504868]
[1736804943474,5.0077,181.65,181.52,20.93164868]
[1736804943686,5.0077,181.65,181.53,94.58]
[1736804943879,6.117,181.65,181.58,2.7544]
[1736804944176,3.3635,181.65,181.58,6.32]
[1736804945574,2.7537,181.64,181.58,6.32]
[1736804945778,1.5582,181.69,181.58,6.32]
[1736804946273,2.7534,181.66,181.59,2.7544]
[1736804946472,1.5582,181.69,181.58,6.32]
[1736804946876,20.93164868,181.64,181.58,6.32]
[1736804947274,20.93164868,181.64,181.53,94.58]
[1736804947580,2.7542,181.61,181.55,2.755]
[1736804947974,20.93164868,181.64,181.55,2.755]
[1736804948175,20.93164868,181.67,181.54,6.32]
[1736804948473,1.5582,181.69,181.54,6.32]
[1736804948676,20.93164868,181.68,181.54,6.32]
[1736804949575,2.7535,181.65,181.54,6.32]
[1736804950175,20.93164868,181.68,181.54,6.32]
[1736804950381,2.7532,181.67,181.54,6.32]
[1736804951079,20.93164868,181.65,181.53,94.58]
[1736804951379,20.93164868,181.62,181.53,94.58]
[1736804951582,3.2361,181.61,181.53,94.58]
[1736804951782,2.7546,181.58,181.53,94.58]
[1736804951977,3.2361,181.61,181.53,94.58]
[1736804952179,20.93164868,181.59,181.53,94.58]
[1736804952374,1.6175,181.6,181.53,94.58]
[1736804952580,20.93164868,181.56,181.53,94.58]
[1736804952781,20.93164868,181.56,181.47,6.32]
[1736804952976,20.93164868,181.59,181.47,6.32]
[1736804953377,2.7548,181.57,181.51,2.7556]
[1736804953676,20.93164868,181.59,181.51,2.7556]
[1736804953881,20.93164868,181.59,181.52,2.7553]
[1736804954186,1.6175,181.6,181.47,27.25164868]
[1736804954984,2.7544,181.59,181.53,2.7551]
[1736804955183,1.6175,181.6,181.47,27.25164868]
[1736804955788,20.93164868,181.59,181.44,20.93164868]
[1736804955987,20.93164868,181.59,181.45,6.32]
[1736804956189,2.755,181.56,181.5,2.7557]
[1736804956384,1.6175,181.6,181.45,6.32]
[1736804956589,3.2361,181.61,181.5,20.93164868]
[1736804956787,2.7543,181.6,181.54,2.755]
[1736804957788,3.2361,181.61,181.53,6.32]
[1736804957989,3.2361,181.61,181.51,6.32]
[1736804958184,2.7549,181.56,181.51,6.32]
[1736804960390,2.755,181.55,181.51,6.32]
[1736804961185,2.7549,181.56,181.51,6.32]
[1736804961382,1.5807,181.6,181.51,6.32]
[1736804961786,2.7544,181.59,181.51,6.32]
[1736804961987,3.2361,181.61,181.51,6.32]
[1736804962592,3.2361,181.61,181.54,2.7551]
[1736804962887,3.2361,181.61,181.51,9.7225]
[1736804963088,2.7545,181.58,181.51,9.0756]
[1736804963389,1.6963,181.6,181.51,6.32]
[1736804963690,2.7548,181.56,181.51,6.32]
[1736804963896,2.7548,181.56,181.51,9.0755]
[1736804964087,20.93164868,181.59,181.49,6.32]
[1736804965088,2.7551,181.55,181.49,6.32]
[1736804965290,1.6963,181.6,181.49,6.32]
[1736804966000,3.2361,181.61,181.5,20.93164868]
[1736804966198,1.5864,181.61,181.5,22.54304868]
[1736804966393,1.5864,181.61,181.58,2.7545]
[1736804966896,1.5864,181.61,181.56,2.7547]
[1736804966897,4.3405,181.61,181.56,2.7547]
[1736804967096,1.5864,181.61,181.5,22.54304868]
[1736804968196,2.7543,181.6,181.54,2.755]
[1736804968401,2.7543,181.6,181.5,22.54304868]
[1736804968791,1.5864,181.61,181.5,22.54304868]
[1736804969189,2.7543,181.6,181.53,2.7552]
[1736804969392,2.7543,181.6,181.5,22.54304868]
[1736804973399,1.632,181.66,181.63,2.7537]
[1736804973597,1.632,181.66,181.57,6.32]
[1736804973789,4.3853,181.66,181.62,2.7539]
[1736804973990,1.7052,181.68,181.59,13.10722077]
[1736804974402,1.7052,181.68,181.57,100.84]
[1736804974596,13.10722077,181.66,181.57,100.84]
[1736804974799,2.754,181.63,181.58,2.7547]
[1736804974994,13.10722077,181.66,181.57,100.84]
[1736804975298,13.10722077,181.63,181.57,100.84]
[1736804975701,13.10722077,181.66,181.57,100.84]
[1736804975897,1.7004,181.67,181.57,100.84]
[1736804976206,1.7004,181.67,181.59,13.10722077]
[1736804976405,1.7052,181.68,181.61,2.7541]
[1736804976594,1.7052,181.68,181.59,13.10722077]
[1736804977358,1.7052,181.68,181.57,121.79519142]
[1736804978103,4.4583,181.68,181.63,2.7537]
[1736804978299,1.7052,181.68,181.57,121.79519142]
[1736804978804,4.4583,181.68,181.63,2.7537]
[1736804979004,1.7004,181.74,181.64,6.32]
[1736804979304,3.2069,181.77,181.65,6.32]
[1736804979903,3.2069,181.77,181.7,2.7527]
[1736804980299,2.7519,181.76,181.7,2.7527]
[1736804980498,2.7519,181.76,181.71,2.7526]
[1736804980700,3.2069,181.77,181.71,2.7526]
[1736804981503,3.2069,181.77,181.69,2.7528]
[1736804982202,2.752,181.75,181.7,2.7527]
[1736804982805,2.7519,181.76,181.71,2.7525]
[1736804983104,3.2069,181.77,181.66,20.95519142]
[1736804983305,1.5968,181.77,181.69,2.7529]
[1736804983516,1.5939,181.79,181.67,1.6766]
[1736804984203,2.7517,181.78,181.72,2.7523]
[1736804984508,1.5939,181.79,181.67,1.6766]
[1736804984707,22.54909142,181.79,181.7,6.32]
[1736804985105,20.95519142,181.76,181.6,22.63179142]
[1736804985408,2.7529,181.7,181.65,2.7535]
[1736804985598,3.2561,181.75,181.65,6.3]
[1736804985806,2.7526,181.71,181.65,9.0534]
[1736804986006,2.7526,181.71,181.65,6.3]
[1736804986205,3.2561,181.75,181.65,6.3]
[1736804986799,6.0081,181.75,181.7,2.7527]
[1736804986999,6.0081,181.75,181.65,6.3]
[1736804987000,1.5678,181.75,181.65,6.3]
[1736804987303,1.5939,181.79,181.66,20.95519142]
[1736804987509,1.5939,181.79,181.67,1.6905]
[1736804987808,2.7513,181.8,181.67,1.6905]
[1736804988004,2.7513,181.8,181.74,2.7521]
[1736804988205,2.7513,181.8,181.73,6.3]
[1736804988807,2.7514,181.8,181.73,6.3]
[1736804989009,20.95519142,181.79,181.68,6.3]
[1736804989216,20.95519142,181.76,181.68,6.3]
[1736804989400,2.7522,181.74,181.69,2.7529]
[1736804989606,20.95519142,181.76,181.68,6.3]
[1736804990005,3.276,181.75,181.68,6.3]
[1736804990206,3.276,181.75,181.6,20.95519142]
[1736804990407,20.95519142,181.73,181.66,2.7533]
[1736804990911,2.7527,181.71,181.66,2.7533]
[1736804991110,1.6402,181.74,181.69,2.7529]
[1736804991409,1.6402,181.74,181.64,6.3]
[1736804991802,3.276,181.75,181.64,6.3]
[1736804992207,3.276,181.75,181.71,2.7525]
[1736804992414,20.95519142,181.79,181.64,6.3]
[1736804992708,3.2352,181.81,181.66,20.95519142]
[1736804992912,3.2352,181.81,181.67,3.2548]
[1736804992913,1.5607,181.81,181.67,3.2548]
[1736804993108,2.7516,181.78,181.73,2.7522]
[1736804994008,2.7517,181.77,181.73,2.7522]
[1736804994206,1.5607,181.81,181.73,2.7522]
[1736804994412,1.5607,181.81,181.71,6.3]
[1736804994606,1.5607,181.81,181.72,2.7524]
[1736804994801,20.95519142,181.79,181.68,6.3]
[1736804995001,2.7522,181.74,181.7,2.7526]
[1736804995215,20.95519142,181.79,181.68,6.3]
[1736804995513,2.7524,181.73,181.69,2.7528]
[1736804995814,20.95519142,181.79,181.68,6.3]
[1736804996212,2.752,181.75,181.71,2.7525]
[1736804997015,2.752,181.75,181.68,6.3]
[1736804997609,2.752,181.75,181.7,2.7528]
[1736804997814,20.95519142,181.79,181.68,6.3]
[1736804998013,20.95519142,181.76,181.68,6.3]
[1736804998211,3.323,181.75,181.65,2.7534]
[1736804998412,2.7527,181.71,181.64,6.3]
[1736804998812,2.7527,181.71,181.66,2.7534]
[1736804999211,3.323,181.75,181.67,2.7532]
[1736804999413,20.95519142,181.79,181.65,20.95519142]
[1736805000111,2.752,181.75,181.69,2.7529]
[1736805000309,20.95519142,181.79,181.66,1.6628]
[1736805000609,2.7523,181.74,181.66,1.6628]
[1736805000818,20.95519142,181.79,181.66,1.6628]
[1736805001217,3.2903,181.8,181.66,1.6628]
[1736805001417,2.7517,181.77,181.66,1.6628]
[1736805001613,3.2903,181.8,181.68,20.95519142]
[1736805001820,1.5607,181.81,181.68,20.95519142]
[1736805002525,1.5607,181.81,181.75,2.7519]
[1736805002918,1.5607,181.81,181.73,6.3]
[1736805003216,2.7521,181.75,181.73,6.3]
[1736805003619,2.7518,181.77,181.73,9.0523]
[1736805003811,1.5607,181.81,181.73,6.3]
[1736805004416,2.7514,181.8,181.73,6.3]
[1736805005119,2.7514,181.8,181.75,2.752]
[1736805005514,1.5607,181.81,181.73,6.3]
[1736805005815,24.11229142,181.85,181.73,6.3]
[1736805006021,3.1571,181.85,181.73,6.3]
[1736805006715,20.95519142,181.82,181.73,6.3]
[1736805007314,2.7514,181.8,181.74,2.7522]
[1736805007514,2.7514,181.8,181.73,6.3]
[1736805007515,20.95519142,181.82,181.73,6.3]
[1736805007923,2.7517,181.78,181.73,6.3]
[1736805008113,20.95519142,181.82,181.73,6.3]
[1736805008313,24.11229142,181.85,181.73,6.3]
[1736805008522,2.751,181.82,181.73,6.3]
[1736805008916,20.95519142,181.79,181.73,6.3]
[1736805009121,20.95519142,181.79,181.72,94.44]
[1736805009324,20.95519142,181.76,181.72,94.44]
[1736805009519,2.7523,181.73,181.72,94.44]
[1736805009915,20.95519142,181.73,181.62,3.2607]
[1736805010122,2.7533,181.67,181.63,2.7538]
[1736805010925,2.7533,181.67,181.62,2.754]
[1736805011528,2.7537,181.64,181.61,100.72]
[1736805011729,20.95519142,181.67,181.61,94.42]
[1736805012431,2.7538,181.64,181.61,94.42]
[1736805012921,20.95519142,181.64,181.5,115.39519142]
[1736805013124,20.95519142,181.64,181.51,6.3]
[1736805013527,20.95519142,181.64,181.54,2.7551]
[1736805013725,20.95519142,181.64,181.52,6.3]
[1736805014129,2.7545,181.59,181.53,2.7552]
[1736805014730,2.7547,181.57,181.52,6.3]
[1736805014929,20.95519142,181.61,181.52,6.3]
[1736805015332,2.7547,181.58,181.51,2.7556]
[1736805015627,20.95519142,181.61,181.5,100.74]
[1736805015831,20.95519142,181.61,181.5,103.4958]
[1736805015832,2.7549,181.57,181.5,103.4958]
[1736805016134,20.95519142,181.61,181.5,100.74]
[1736805017227,2.7546,181.58,181.53,2.7553]
[1736805017532,20.95519142,181.61,181.5,100.74]
[1736805017835,20.95519142,181.64,181.5,100.74]
[1736805018133,20.95519142,181.64,181.51,20.95519142]
[1736805018332,1.689,181.66,181.51,20.95519142]
[1736805018736,2.7537,181.65,181.58,2.7545]
[1736805018937,1.689,181.66,181.54,20.95519142]
[1736805019132,1.5713,181.68,181.55,6.3]
[1736805019335,20.95519142,181.74,181.57,20.95519142]
[1736805019545,24.17499142,181.74,181.6,20.95519142]
[1736805019736,3.2198,181.74,181.6,20.95519142]
[1736805019932,24.17499142,181.74,181.6,20.95519142]
[1736805020731,3.2198,181.74,181.63,20.95519142]
[1736805020939,2.752,181.75,181.64,6.3]
[1736805021150,20.95519142,181.77,181.64,7.9439]
[1736805021441,2.7525,181.72,181.65,2.7535]
[1736805021735,20.95519142,181.74,181.64,6.3]
[1736805022144,2.7529,181.7,181.64,6.3]
[1736805022546,2.7525,181.72,181.67,2.7532]
[1736805022733,20.95519142,181.77,181.64,6.3]
[1736805022930,20.95519142,181.74,181.64,6.3]
[1736805023143,2.7531,181.69,181.64,6.3]
[1736805023337,20.95519142,181.71,181.64,6.3]
[1736805023535,2.7533,181.67,181.64,6.3]
[1736805024241,2.7531,181.68,181.64,6.3]
[1736805024441,20.95519142,181.71,181.61,6.3]
[1736805024738,20.95519142,181.68,181.61,6.3]
[1736805025138,2.7534,181.66,181.61,6.3]
[1736805025542,20.95519142,181.68,181.61,6.3]
[1736805025837,20.95519142,181.68,181.59,2.7543]
[1736805026032,20.95519142,181.68,181.58,6.3]
[1736805026033,20.95519142,181.68,181.58,9.0546]
[1736805026239,20.95519142,181.65,181.55,6.3]
[1736805026448,20.95519142,181.62,181.55,6.3]
[1736805026742,20.95519142,181.59,181.5,94.44]
[1736805026950,2.7552,181.55,181.5,94.44]
[1736805027138,20.95519142,181.59,181.5,94.44]
[1736805027541,2.7548,181.57,181.5,94.44]
[1736805027736,20.95519142,181.59,181.5,94.44]
[1736805028247,2.755,181.56,181.51,2.7556]
[1736805028435,20.95519142,181.59,181.5,94.44]
[1736805028745,2.755,181.56,181.5,94.44]
[1736805028941,2.755,181.56,181.51,2.7556]
[1736805029138,20.95519142,181.59,181.5,94.44]
[1736805029543,2.7543,181.6,181.5,94.44]
[1736805029746,2.7544,181.6,181.5,94.44]
[1736805030042,4.826,181.61,181.5,94.44]
[1736805030346,4.826,181.61,181.53,2.7552]
[1736805030755,2.7546,181.59,181.53,2.7552]
[1736805031047,4.826,181.61,181.5,94.44]
[1736805031441,20.95519142,181.65,181.5,115.39519142]
[1736805031839,2.7541,181.61,181.55,2.7549]
[1736805032044,20.95519142,181.65,181.5,115.39519142]
[1736805032245,2.754,181.62,181.5,115.39519142]
[1736805032446,2.754,181.62,181.56,2.7548]
[1736805032646,2.754,181.62,181.56,9.0548]
[1736805035251,2.7544,181.6,181.56,6.3]
[1736805035550,2.7544,181.6,181.54,2.7552]
[1736805035551,20.95519142,181.62,181.54,6.3]
[1736805036249,2.7546,181.59,181.54,6.3]
[1736805036644,2.7543,181.6,181.54,9.0551]
[1736805036845,2.7543,181.6,181.54,6.3]
[1736805037354,20.95519142,181.62,181.5,94.44]
[1736805037556,4.9928,181.61,181.5,94.44]
[1736805039255,1.7186,181.61,181.5,115.39519142]